[Event "41st Zalakaros Festival 2022"]
[Site "Zalakaros"]
[Date "2022.06.13"]
[Round "9.1"]
[White "Sammed Jaykumar, Shete"]
[Black "Peczely, Sebastian Zsombor"]
[Result "0-1"]
[ECO "C54"]
[WhiteElo "2400"]
[BlackElo "2313"]
[Annotator "TA"]
[PlyCount "104"]
[EventDate "2022.06.05"]
[EventType "swiss"]
[EventCountry "HUN"]
[SourceTitle "playchess.com"]
[Source "ChessBase"]
[SourceQuality "1"]
[TimeControl "40/5400+30:1800+30"]

{[%evp 18,104,0,0,-10,0,-19,-21,-1,-10,-10,-10,-12,-12,-22,-9,-22,-16,11,9,10,16,15,10,43,27,31,33,33,0,0,0,58,6,105,90,88,93,243,241,237,241,231,235,216,98,267,181,199,160,299,304,365,217,210,43,46,48,35,42,29,0,0,0,133,138,204,0,0,0,644,640,602,577,578,0,89,0,0,-1187,0,-1285,-711,-29993,-29994,-29994,-29995,-29995,-29996]} 1. e4 {[%emt 0:00:38]} e5 {[%emt 0:00:36]} 2. Nf3 {[%emt 0:00:09]} Nc6 {[%emt 0:00:07]} 3. Bc4 {[%emt 0:00:05]} Bc5 {[%emt 0:00:05]} 4. c3 {[%emt 0:00:04]} Nf6 {[%emt 0:01:30]} 5. d4 {[%emt 0:00:18]} exd4 {[%emt 0:00:17]} 6. e5 {[%emt 0:00:12]} d5 {[%emt 0:03:08]} 7. Be2 {[%emt 0:00:13]} Ne4 {[%emt 0:01:03]} 8. cxd4 {[%emt 0:00:07]} Bb4+ {[%emt 0:00:33]} 9. Bd2 {[%emt 0:00:08]} Nxd2 {[%emt 0:00:22]} 10. Nbxd2 {[%emt 0:00:07]} O-O {[%emt 0:01:29] C54: Giuoco Piano: 4 c3 Nf6, main lines with 5 d4 and 5 d3.} 11. O-O {[%emt 0:00:07]} f6 {[%emt 0:00:58]} 12. Nb3 {[%emt 0:02:32]} Re8 {[%emt 0:13:02][%cal Rf6e5] The position is equal.} 13. Bb5 {[%emt 0:01:13]} Bg4 {[%emt 0:06:18]} 14. a3 {[%emt 0:00:38]} Bf8 {[%emt 0:00:09][%cal Rf6e5]} 15. Bxc6 {[%emt 0:00:14]} bxc6 {[%emt 0:00:06]} 16. Rc1 {[%emt 0:00:09]} fxe5 {[%emt 0:16:44]} 17. dxe5 {[%emt 0:00:07] [#]} Bxf3 $146 {[%emt 0:02:54]} ({Predecessor:} 17... Rxe5 18. Nbd4 Rh5 19. h3 Bxh3 20. Nxc6 {½-½ (20) Stuart,A (2410)-Fernandez Martinez,J (2418) ICCF email 2017}) 18. Qxf3 {[%emt 0:01:07]} Rxe5 {[%emt 0:00:05]} 19. Nd4 {[%emt 0:02:18]} Qd7 {[%emt 0:02:28] Strongly threatening ...c5.} 20. Nxc6 {[%emt 0:03:57]} Re4 {[%emt 0:04:53]} (20... Re6 $5 {[%cal Re6c6]} 21. Qc3 g6 $11) 21. Rfd1 {[%emt 0:03:57]} Rae8 {[%emt 0:00:18][%cal Of8c5,Ba8e8,Be8e6,Be6f6][%mdl 32]} 22. g3 {[%emt 0:00:31]} (22. Qb3 $2 Qxc6 $3 {[%mdl 512]} 23. g3 Rc4 24. Rxc4 dxc4 $19) 22... R8e6 {[%emt 0:03:50]} 23. Nd4 {[%emt 0:06:25]} (23. Qc3 $5 {[%cal Rc6d4]}) 23... Rf6 {[%emt 0:04:49]} 24. Qd3 {[%emt 0:07:55]} c6 {[%emt 0:14:21]} ({Black should try} 24... c5 $11 25. Nb3 Qf5 26. Qxd5+ Qxd5 27. Rxd5 Re2) 25. Rc3 {[%emt 0:06:36]} (25. b4 $1 $14) 25... Qh3 {[%emt 0:09:54]} (25... Re8 $11 {remains equal.}) 26. f3 {[%emt 0:02:36]} Rh4 {[%emt 0:01:31]} 27. Qc2 {[%emt 0:09:06]} c5 {[%emt 0:05:48]} 28. gxh4 $18 Rg6+ 29. Kh1 {[%emt 0:02:54]} cxd4 {[%emt 0:00:51]} 30. Rcd3 {[%emt 0:00:25]} Bd6 {[%emt 0:01:24]} 31. Rc1 {[%emt 0:08:58]} (31. f4 $18 {is more deadly.} Qg4 32. Qf2) 31... Kf7 $2 {[%emt 0:01:25]} (31... Qxh4 $16 {was worth a try.} 32. Qc8+ Bf8) 32. Rb3 {[%emt 0:08:00][%cal Of3f4]} Kf6 {[%emt 0:01:20]} 33. Qf2 {[%emt 0:01:00]} Kf5 {[%emt 0:02:11]} (33... Ke7 $16 34. Rb7+ Kd8) 34. Rg1 {[%emt 0:03:20]} Bf4 {[%emt 0:01:00]} 35. Rxg6 {[%emt 0:07:01]} (35. Qc2+ $142 Kf6 36. Qc6+ Ke7 37. Qc5+ Bd6 38. Re1+ Re6 39. Rxe6+ Qxe6 40. Qxd4 Qe1+ 41. Kg2 Qe2+ 42. Qf2 Qxf2+ 43. Kxf2) 35... hxg6 {[%emt 0:00:32][%mdl 4096] Endgame KQR-KQB} 36. Rd3 $2 {[%emt 0:04:54]} (36. a4 $1 $18) 36... Be3 $14 {[%emt 0:00:54]} 37. Qg2 {[%emt 0:00:18]} Qxh4 {[%emt 0:00:11]} 38. Qg3 $36 {[%emt 0:00:21][%mdl 2048] Against Qe1+. White is more active.} Qf6 {[%emt 0:00:48]} 39. Rb3 {[%emt 0:06:04] Black must now prevent Rb8.} Qc6 {[%emt 0:00:41]} 40. Rb8 {[%emt 0:00:00]} Qc1+ {[%emt 0:00:00]} (40... Kf6 $11 {keeps the balance.}) 41. Kg2 $16 {[%emt 0:01:01] Rf8+ would kill now.} g5 {[%emt 0:21:16] [#]} (41... Qg1+ $16 42. Kh3 Qf1+ 43. Qg2 (43. Kh4 $2 Bf2 $19) 43... Qd3) 42. Rc8 $2 {[%emt 0:07:57]} Qg1+ $11 {[%emt 0:07:53]} 43. Kh3 {[%emt 0:00:06] Threatens to win with Qxg1.} g4+ $2 {[%emt 0:00:40][%mdl 8192]} ({Don't play} 43... Qf1+ 44. Qg2 Qxg2+ 45. Kxg2 $16) (43... Qxg3+ $11 44. Kxg3 d3) 44. fxg4+ $18 {[%emt 0:00:16]} Ke4 {[%emt 0:00:07]} 45. Re8+ {[%emt 0:00:58]} Kd3 {[%emt 0:00:21] Hoping for ...Qxg3+.} 46. Qf3 {[%emt 0:00:49]} (46. Qxg1 $18 {White wants to mate with Qb1+.} Bxg1 47. Kg2) 46... g5 {[%emt 0:01:21] [#]} (46... Kd2 $11) 47. Rc8 {[%emt 0:01:46]} (47. b4 $1 $16) 47... Kd2 $1 $11 {[%emt 0:00:51] aiming for ...d3. Really sharp!} 48. Qf5 {[%emt 0:02:27][%mdl 8192]} (48. Rd8 $11) 48... Qd1 $2 {[%emt 0:00:52]} ({Better is} 48... d3 $19 {( -> ...Bf4)} 49. Rc3 Qb1) 49. Rc5 $2 {[%emt 0:01:22][%mdl 8192]} (49. Qxd5 d3 50. Rf8 Bf4 $17) (49. Rd8 $11) 49... Bf4 $19 {[%emt 0:00:24][%cal Rd1f1]} 50. Kg2 {[%emt 0:03:34] Prevents Qf1+.} Qe2+ {[%emt 0:00:06] Black mates.} 51. Kg1 {[%emt 0:00:03]} Qxh2+ {[%emt 0:00:26]} 52. Kf1 {[%emt 0:00:04]} Qh3+ {[%emt 0:00:11] Weighted Error Value: White=0.89/Black=0.45} 0-1

[Event "41st Zalakaros Festival 2022"]
[Site "Zalakaros"]
[Date "2022.06.13"]
[Round "9.2"]
[White "Csonka, Balazs"]
[Black "Bokorovics, Bertalan"]
[Result "1/2-1/2"]
[ECO "B22"]
[WhiteElo "2498"]
[BlackElo "2221"]
[Annotator "TA"]
[PlyCount "72"]
[EventDate "2022.06.05"]
[EventType "swiss"]
[EventCountry "HUN"]
[SourceTitle "playchess.com"]
[Source "ChessBase"]
[SourceQuality "1"]
[TimeControl "40/5400+30:1800+30"]

{[%evp 12,72,14,17,10,3,12,19,16,10,10,12,34,26,45,2,20,-18,0,0,19,20,21,23,23,20,24,14,26,23,21,20,18,0,0,0,0,0,0,0,0,0,0,0,0,0,0,0,0,0,0,0,0,0,0,0,0,0,0,0,0,0,0]} 1. e4 {[%emt 0:00:34]} c5 {[%emt 0:00:34]} 2. c3 {[%emt 0:00:07]} d5 {[%emt 0:00:05]} 3. exd5 {[%emt 0:00:06]} Qxd5 {[%emt 0:00:06]} 4. d4 {[%emt 0:00:07]} Nf6 {[%emt 0:00:47]} 5. Nf3 {[%emt 0:00:09]} e6 {[%emt 0:00:09]} 6. Na3 {[%emt 0:00:40]} Nc6 {[%emt 0:01:04]} 7. Be3 {[%emt 0:00:48]} cxd4 {[%emt 0:01:12] [#] B22: Sicilian: 2 c3.} 8. Nb5 $1 {[%emt 0:00:23] Black must now prevent Nc7+.} Qd8 {[%emt 0:00:22] Inhibits Nc7+.} (8... Qd7 9. Nbxd4) 9. Nbxd4 {[%emt 0:00:10]} Nd5 {[%emt 0:00:40]} 10. Nxc6 {[%emt 0:00:38]} bxc6 {[%emt 0:00:02]} 11. Bd2 $1 {[%emt 0:00:16][%mdl 4] now scores much better than the old 11.Bd4.} Bd6 {[%emt 0:05:00]} 12. c4 {[%emt 0:10:16]} Nf6 {[%emt 0:03:23] [#]} 13. Qc2 $146 {[%emt 0:03:01]} ({Predecessor:} 13. Bc3 Ne4 14. Qd4 Nxc3 15. Qxg7 Rf8 16. Qxc3 Qe7 17. a3 {½-½ (26) Ferreira,J (2524)-Fier,A (2547) Evora 2019}) 13... c5 {[%emt 0:02:13]} 14. Bc3 {[%emt 0:24:37]} Bb7 {[%emt 0:04:45]} 15. Qa4+ {[%emt 0:15:15]} Qd7 {[%emt 0:03:20]} 16. Qxd7+ {[%emt 0:00:08]} Kxd7 {[%emt 0:02:01]} 17. Ne5+ {[%emt 0:00:42]} Ke7 {[%emt 0:01:18] And now ...Ne4 would win.} 18. f3 {[%emt 0:00:08] Against Ne4} h5 {[%emt 0:06:52]} 19. Bd3 {[%emt 0:16:51]} Rad8 {[%emt 0:04:36] [#] Hoping for ...Bxe5.} 20. Rd1 {[%emt 0:02:28]} Nd7 {[%emt 0:04:50]} 21. Nxd7 {[%emt 0:00:47] The position is equal.} Rxd7 {[%emt 0:00:17]} 22. h3 {[%emt 0:10:26]} ({Don't play} 22. Bxg7 Rg8 23. Bh6 Rxg2 $15) 22... h4 {[%emt 0:06:45]} 23. Kf2 {[%emt 0:02:49]} f6 {[%emt 0:01:30]} 24. Bc2 {[%emt 0:03:10]} Rhd8 {[%emt 0:04:51]} 25. Ke2 {[%emt 0:00:50]} Bc6 {[%emt 0:05:49] Inhibits Ba4.} 26. Rd2 {[%emt 0:00:48]} Be5 {[%emt 0:04:07]} 27. Rxd7+ {[%emt 0:00:27]} Rxd7 {[%emt 0:00:22]} 28. Bxe5 {[%emt 0:00:07]} fxe5 $11 {[%emt 0:00:05][%mdl 4096] Endgame KRB-KRB} 29. Ke3 {[%emt 0:00:57]} Rd4 {[%emt 0:03:48]} 30. Bd3 {[%emt 0:00:27]} Kd6 {[%emt 0:01:36][%cal Oe5e4]} 31. Be2 {[%emt 0:02:59]} g5 {[%emt 0:03:00]} 32. Rf1 {[%emt 0:01:12]} a5 {[%emt 0:01:13]} 33. b3 {[%emt 0:01:32]} Rf4 {[%emt 0:01:27]} 34. Rd1+ {[%emt 0:01:37]} Rd4 {[%emt 0:00:07]} 35. Rf1 {[%emt 0:00:08]} Rf4 {[%emt 0:00:13]} 36. Rd1+ {[%emt 0:01:57]} Rd4 {[%emt 0:00:05] Weighted Error Value: White=0.04 (flawless) /Black=0.02 (flawless)} 1/2-1/2

[Event "41st Zalakaros Festival 2022"]
[Site "Zalakaros"]
[Date "2022.06.13"]
[Round "9.3"]
[White "Kantor, Gergely"]
[Black "Pogany, Zsombor"]
[Result "1-0"]
[ECO "D85"]
[WhiteElo "2587"]
[BlackElo "2104"]
[Annotator "TA"]
[PlyCount "110"]
[EventDate "2022.06.05"]
[EventType "swiss"]
[EventCountry "HUN"]
[SourceTitle "playchess.com"]
[Source "ChessBase"]
[SourceQuality "1"]
[TimeControl "40/5400+30:1800+30"]

{[%evp 16,110,16,12,62,66,78,90,114,78,116,106,140,93,199,216,283,235,241,155,153,148,213,227,179,112,118,102,97,98,156,100,114,113,136,145,131,114,150,143,157,147,172,114,114,114,179,144,120,115,118,118,136,110,180,170,164,180,178,178,169,170,187,182,224,224,199,199,199,191,474,339,570,539,937,892,2280,2123,1916,1836,1597,1419,5953,3899,5561,5024,2387,2310,29964,29964,29974,29974,29974,29973,29964,29966,29975]} 1. d4 {[%emt 0:03:58]} Nf6 {[%emt 0:00:48]} 2. Nf3 {[%emt 0:00:34]} g6 {[%emt 0:00:47]} 3. c4 {[%emt 0:07:21]} Bg7 {[%emt 0:00:19]} 4. Nc3 {[%emt 0:01:38]} d5 {[%emt 0:00:19]} 5. cxd5 {[%emt 0:00:03]} Nxd5 {[%emt 0:00:07]} 6. e4 {[%emt 0:00:03]} Nxc3 {[%emt 0:00:10]} 7. bxc3 {[%emt 0:00:01]} c5 {[%emt 0:00:13]} 8. Be3 {[%emt 0:00:03]} Nc6 {[%emt 0:01:58]} 9. Rc1 {[%emt 0:06:45]} Qa5 {[%emt 0:02:17] D85: Exchange Grünfeld: Unusual White 7th moves and lines with 7 Nf3.} (9... cxd4 $11 10. cxd4 Qa5+ 11. Bd2 Qxa2) 10. d5 $1 $14 Nb8 {[%emt 0:10:22]} 11. Qd2 {[%emt 0:08:45]} O-O {[%emt 0:07:13] White is better.} 12. Bh6 $1 {[%emt 0:03:24] [#]} f6 $146 {[%emt 0:12:37]} ({Predecessor:} 12... Bxh6 13. Qxh6 f6 14. Qd2 e5 15. Be2 b5 16. c4 b4 17. O-O Nd7 18. Qc2 Qc7 {0-1 (33) Perrin,R-Dabholkar,P (2069) ICCF email 2005}) 13. h4 {[%emt 0:07:28][%cal Oe4e5]} Rf7 {[%emt 0:07:38]} 14. e5 {[%emt 0:10:45]} (14. Be3 $142) 14... fxe5 {[%emt 0:03:35]} (14... Bxh6 $16 15. Qxh6 Bf5) 15. h5 $1 $18 {[%emt 0:18:40]} (15. Bxg7 $6 Rxg7 16. h5 (16. Nxe5 Nd7 $14) 16... gxh5 $16) 15... Bf5 {[%emt 0:02:26]} 16. hxg6 {[%emt 0:09:06]} Bxg6 {[%emt 0:00:32]} 17. Bxg7 {[%emt 0:00:06]} Rxg7 {[%emt 0:00:53]} 18. Nxe5 {[%emt 0:00:15]} Qc7 {[%emt 0:02:10]} (18... Be8 $16) 19. Nxg6 {[%emt 0:08:04]} (19. Qf4 $6 Qd6 $16) 19... Rxg6 {[%emt 0:04:30]} 20. Qe3 {[%emt 0:00:15] Inhibits Qe5.} (20. Bd3 $18 Qe5+ 21. Kd1) 20... Nd7 $16 {[%emt 0:02:34]} 21. Bd3 {[%emt 0:03:37]} (21. Qxe7 Rg7 22. Qe6+ Kh8) 21... Rg7 {[%emt 0:00:49]} 22. Bf5 {[%emt 0:03:00] aiming for Qe6+.} Nf8 {[%emt 0:02:08] Inhibits Qe6+.} (22... Rf8 $142 23. g4 (23. Qe6+ Kh8 $11) 23... Kh8) 23. Rh6 {[%emt 0:02:04]} (23. Kf1 $142) 23... Rd8 {[%emt 0:02:15]} 24. Kf1 {[%emt 0:00:55]} Rd6 {[%emt 0:00:47]} 25. Rh5 {[%emt 0:01:10]} Rf6 {[%emt 0:05:03]} 26. Re1 {[%emt 0:00:17]} Qd6 {[%emt 0:01:52]} 27. c4 {[%emt 0:00:54]} Qa6 {[%emt 0:04:18]} 28. Qxc5 {[%emt 0:01:19]} Qxa2 {[%emt 0:03:42]} 29. g4 {[%emt 0:01:21]} (29. Rxe7 Rxe7 30. Qxe7 Rxf5 $1 {[%mdl 512]} 31. Rg5+ Rxg5 32. Qxg5+ Ng6 33. Qd8+ Kf7 34. Qd7+ Ne7 $17) (29. Qd4 $18) 29... b6 {[%emt 0:04:28]} 30. Qd4 {[%emt 0:00:08] Strongly threatening Ra1.} Qa6 {[%emt 0:02:40]} (30... Qb3 $16 31. Re3 (31. Rxe7 Rxe7 32. Qxf6 Qxc4+ 33. Kg2 Qxd5+ 34. Kg3 Qb3+ 35. Kh4 Qf7 $14) 31... Qb4) 31. Rh3 {[%emt 0:02:36] Threatens to win with Rhe3.} Qb7 {[%emt 0:01:01]} 32. Qe4 {[%emt 0:00:23][%cal Og4g5] 0x0.00207ab1eeb2dp-1022s more active pieces. The black rooks are badly placed.} Qc7 {[%emt 0:02:19]} 33. Ree3 {[%emt 0:00:04]} Qd6 {[%emt 0:01:38]} 34. Reg3 {[%emt 0:00:44]} Rh6 {[%emt 0:02:49] [#]} (34... h6 $16 {was worth a try.} 35. Re3 a6) 35. Be6+ $1 $18 {[%emt 0:00:22]} Rxe6 {[%emt 0:03:43]} 36. dxe6 {[%emt 0:00:06]} Qxe6 {[%emt 0:00:53]} 37. Qxe6+ {[%emt 0:00:05]} Nxe6 {[%emt 0:00:04][%mdl 4096] Endgame KRR-KRN} 38. Rh6 {[%emt 0:01:02]} Nc5 {[%emt 0:00:27]} 39. Rc6 {[%emt 0:01:04]} Rf7 {[%emt 0:01:14]} 40. Re3 {[%emt 0:00:00] Inhibits Ne4.} ({Don't do} 40. Ra3 e6 41. Ke2 Kg7) 40... e6 {[%emt 0:00:00]} 41. Kg2 {[%emt 0:05:05]} Rf4 {[%emt 0:02:25]} 42. Kg3 {[%emt 0:05:11]} Rxc4 {[%emt 0:00:56]} (42... Rd4 43. Rc8+ Kf7 44. Rc7+ Kg6 45. Rxa7 Rxc4) 43. Rexe6 {[%emt 0:01:43]} ({Less strong is} 43. Rc8+ Kg7 $16) 43... Rc3+ $2 {[%emt 0:02:46]} (43... b5 44. Re8+ Kf7) 44. f3 {[%emt 0:03:39][%cal Bf2f3,Bf3f4][%mdl 32]} Nxe6 {[%emt 0:01:36]} 45. Rxc3 {[%emt 0:00:13] And now Ra3 would win. KR-KN} Nc5 {[%emt 0:00:08]} 46. Kf4 {[%emt 0:03:29]} a5 {[%emt 0:01:15]} 47. Kf5 {[%emt 0:04:45]} Kf7 {[%emt 0:02:15]} 48. f4 {[%emt 0:00:41]} a4 {[%emt 0:02:19]} 49. Rc4 {[%emt 0:06:27]} Ke7 {[%emt 0:01:38]} 50. Rb4 {[%emt 0:01:28]} a3 {[%emt 0:01:30]} 51. Rb1 {[%emt 0:00:06] Ra1 is the strong threat.} Kd7 {[%emt 0:04:04]} 52. Ra1 {[%emt 0:00:44] White mates.} b5 {[%emt 0:00:18]} 53. Rxa3 {[%emt 0:00:03]} b4 {[%emt 0:00:05]} 54. Ra7+ {[%emt 0:00:51]} Kc6 {[%emt 0:00:06]} 55. Rxh7 {[%emt 0:00:06]} Kd5 {Weighted Error Value: White=0.10 (very precise) /Black=0.56} 1-0

[Event "41st Zalakaros Festival 2022"]
[Site "Zalakaros"]
[Date "2022.06.13"]
[Round "9.4"]
[White "Nemeth, Zalan"]
[Black "Horvath, Adam"]
[Result "0-1"]
[ECO "A37"]
[WhiteElo "2177"]
[BlackElo "2513"]
[Annotator "TA"]
[PlyCount "96"]
[EventDate "2022.06.05"]
[EventType "swiss"]
[EventCountry "HUN"]
[SourceTitle "playchess.com"]
[Source "ChessBase"]
[SourceQuality "1"]
[TimeControl "40/5400+30:1800+30"]

{[%evp 10,96,12,1,0,4,21,17,4,5,12,-32,-32,-23,-37,-29,-16,-24,-11,-79,-23,-23,-35,-27,-16,-38,-24,-31,0,0,2,0,0,0,0,0,0,0,0,0,0,0,0,6,0,0,49,49,43,50,40,43,66,30,294,-12,-16,-58,-59,-78,0,0,27,-435,-435,-438,-445,-438,-431,-422,-437,-435,-415,-741,-725,-728,-712,-721,-716,-701,-545,-5632,-5369,-8200,-5369,-5124,-5124,-5110,-5093]} 1. Nf3 {[%emt 0:00:32]} c5 {[%emt 0:05:22]} 2. c4 {[%emt 0:00:07]} Nc6 {[%emt 0:00:10]} 3. Nc3 {[%emt 0:00:04]} g6 {[%emt 0:01:47]} 4. g3 {[%emt 0:00:08]} Bg7 {[%emt 0:00:29]} 5. Bg2 {[%emt 0:00:09]} d6 {[%emt 0:00:13]} 6. a3 {[%emt 0:00:58]} e6 {[%emt 0:00:29] Nowadays more popular than 6...e5. A37: Symmetrical English vs ...g6: 4 Bg2 Bg7 5 Nf3.} 7. b4 {[%emt 0:04:05]} Nge7 {[%emt 0:00:08]} 8. Rb1 {[%emt 0:02:37]} b6 {[%emt 0:01:17] The position is equal.} 9. O-O {[%emt 0:04:23]} Bb7 {[%emt 0:00:47]} 10. bxc5 {[%emt 0:02:28]} dxc5 {[%emt 0:00:07]} 11. Ne4 {[%emt 0:00:52]} Rb8 {[%emt 0:10:09] [#]} 12. Bb2 $146 {[%emt 0:14:21]} ({Predecessor:} 12. d3 O-O 13. Bd2 f5 14. Neg5 Qd7 15. h4 h6 16. Nh3 e5 17. Qc1 Kh7 18. Kh2 {0-1 (85) Mandekic,I (2183)-Jovanovic,Z (2522) Mali Losinj 2021}) 12... e5 {[%emt 0:01:52]} 13. e3 {[%emt 0:13:56]} O-O {[%emt 0:22:25] With the idea ...Qd3.} 14. Qc2 {[%emt 0:05:57] Inhibits Qd3.} (14. d3 $1 $11) 14... Qd7 {[%emt 0:06:04]} (14... f5 $17 15. Neg5 Qd7) 15. Nc3 {[%emt 0:02:30]} f5 {[%emt 0:09:29]} 16. d3 {[%emt 0:00:22] Against e4} h6 {[%emt 0:03:37]} 17. Rbd1 {[%emt 0:03:54]} Rbd8 {[%emt 0:02:20]} 18. h4 {[%emt 0:12:07]} Kh8 {[%emt 0:05:07]} 19. Ne2 {[%emt 0:01:20]} Qc8 {[%emt 0:07:11]} 20. d4 {[%emt 0:01:47]} cxd4 {[%emt 0:05:56]} 21. exd4 {[%emt 0:00:09]} e4 {[%emt 0:00:55]} 22. Ne5 {[%emt 0:00:26]} Nxe5 {[%emt 0:00:29]} 23. dxe5 {[%emt 0:00:06]} Ba6 {[%emt 0:00:17]} 24. Rxd8 {[%emt 0:07:37]} Rxd8 {[%emt 0:00:06]} 25. Rc1 {[%emt 0:00:18]} Kh7 {[%emt 0:13:17]} 26. Nf4 {[%emt 0:00:25]} Nc6 {[%emt 0:00:32]} 27. h5 {[%emt 0:02:42]} g5 {[%emt 0:02:04]} (27... Nxe5 $11 28. hxg6+ Nxg6) 28. Nd5 $14 {[%emt 0:06:16][%cal Og2e4] [#] Bxe4! is the strong threat.} Kh8 {[%emt 0:01:00]} 29. g4 {[%emt 0:06:42]} Bb7 $1 {[%emt 0:00:04]} 30. gxf5 {[%emt 0:02:28]} Qxf5 {[%emt 0:00:04]} 31. Bxe4 {[%emt 0:00:41]} (31. Ne3 $5 {[%cal Re3f5]} Qf4 32. e6 $14 (32. Qxe4 Rd2 $11) (32. Bxe4 $2 Nd4 $19)) 31... Qg4+ {[%emt 0:00:21][%mdl 8192]} (31... Qf7 $1 $11 {and Black has nothing to worry.}) 32. Kf1 $2 {[%emt 0:00:08]} (32. Bg2 $18) 32... Nxe5 $11 {[%emt 0:00:34]} 33. Bxe5 Bxe5 {[%emt 0:00:07]} 34. Qe2 {[%emt 0:03:53]} Qh3+ {[%emt 0:01:59]} ({Black should try} 34... Qxe2+ $17 35. Kxe2 Bd6) 35. Bg2 {[%emt 0:00:09]} Qh2 {[%emt 0:00:03]} 36. f4 $2 {[%emt 0:01:50][%mdl 8192]} (36. Re1 $11 {and White is okay.} Bxd5 37. cxd5) 36... Bd4 $19 {[%emt 0:00:27][%csl Gd4][%cal Rh2g1] [#]} ({Not} 36... Rxd5 $2 37. Bxd5 Qxf4+ 38. Kg2 $19) 37. Qe4 {[%emt 0:00:55]} Qg1+ {[%emt 0:01:05]} 38. Ke2 {[%emt 0:00:04]} Qf2+ {[%emt 0:00:26]} ({Worse is} 38... Qxc1 39. Qxd4+ Kg8 40. Be4 $11) 39. Kd3 {[%emt 0:00:05]} Bg7 {[%emt 0:00:20] Strongly threatening ...b5.} 40. Rc2 {[%emt 0:00:00]} Qg1 {[%emt 0:00:00][%cal Ob6b5] Threatens to win with ...b5!} 41. fxg5 {[%emt 0:04:38]} (41. Qe7 $142 Rf8 42. Qxb7) 41... b5 {[%emt 0:07:08] White must now prevent ...bxc4+. Black is clearly winning.} 42. gxh6 {[%emt 0:04:47]} bxc4+ {[%emt 0:05:12]} ({Weaker is} 42... Qd1+ 43. Rd2 bxc4+ 44. Qxc4 Qb1+ 45. Ke2 Bxh6 46. Ne3 Rxd2+ 47. Kxd2 $17) 43. Qxc4 {[%emt 0:05:25]} Bf6 {[%emt 0:06:30][%cal Ob7a6] ( -> ...Ba6!). This bishop pair is nice.} 44. Rd2 {[%emt 0:16:08]} Rc8 {[%emt 0:06:54]} 45. Nxf6 {[%emt 0:01:21] Hoping for Qd4.} Rxc4 {[%emt 0:00:19]} 46. Kxc4 {[%emt 0:00:05]} Qc1+ {[%emt 0:00:21]} 47. Kb3 {[%emt 0:01:27]} Qxd2 {[%emt 0:00:11]} 48. Bxb7 {[%emt 0:00:05]} Qd3+ {[%emt 0:00:18] Weighted Error Value: White=0.80/Black=0.18 (very precise)} 0-1

[Event "41st Zalakaros Festival 2022"]
[Site "Zalakaros"]
[Date "2022.06.13"]
[Round "9.6"]
[White "Pasztor, Ferenc"]
[Black "Farkas, Gabor"]
[Result "0-1"]
[ECO "A33"]
[WhiteElo "2195"]
[BlackElo "2324"]
[Annotator "TA"]
[PlyCount "42"]
[EventDate "2022.06.05"]
[EventType "swiss"]
[EventCountry "HUN"]
[SourceTitle "playchess.com"]
[Source "ChessBase"]
[SourceQuality "1"]
[TimeControl "40/5400+30:1800+30"]

{[%evp 14,42,10,-50,-53,-53,-45,-62,-58,-65,0,-29,-15,-37,0,-103,-100,-122,-129,-165,-166,-349,-346,-462,-457,-421,-428,-1165,-1164,-2058,-2013]} 1. c4 {[%emt 0:00:37]} e6 {[%emt 0:00:37]} 2. d4 {[%emt 0:00:21]} c5 {[%emt 0:00:06]} 3. Nf3 {[%emt 0:01:38]} Nf6 {[%emt 0:00:51][%cal Bg8f6,Bf6e4,Be4d2][%mdl 32]} 4. Nc3 {[%emt 0:00:18]} cxd4 {[%emt 0:00:07]} 5. Nxd4 {[%emt 0:00:08]} Nc6 {[%emt 0:00:54]} 6. e4 {[%emt 0:04:53]} Bb4 {[%emt 0:02:15]} 7. Nxc6 {[%emt 0:03:09]} bxc6 {[%emt 0:01:07]} 8. e5 {[%emt 0:01:01]} ({White should play} 8. Bd3 $11) 8... Ne4 $1 $15 {[%emt 0:00:30] B44: Sicilian: Taimanov: 5 Nb5.} 9. Bd2 {[%emt 0:01:22]} Nxd2 {[%emt 0:00:26]} ({Much less strong is} 9... Qh4 10. g3 Nxc3 11. gxh4 $16) 10. Qxd2 {[%emt 0:00:14]} Qa5 {[%emt 0:00:13] Black is slightly better.} 11. f4 {[%emt 0:00:51]} Bxc3 {[%emt 0:02:58] [#]} (11... d6 $15 12. exd6 O-O) 12. bxc3 $146 {[%emt 0:05:48]} ({Predecessor:} 12. Qxc3 Qxc3+ 13. bxc3 Rb8 14. Bd3 c5 15. O-O Ba6 16. Rab1 O-O 17. Kf2 f5 18. Ke3 {1-0 (54) Luetzow,S-Borkenhagen,A Nakensdorf 1995}) 12... O-O {[%emt 0:08:43]} 13. Be2 {[%emt 0:02:35]} f6 {[%emt 0:03:44]} 14. Qe3 {[%emt 0:07:50]} (14. exf6 $11 {keeps the balance.} Rxf6 15. O-O) 14... fxe5 $17 {[%emt 0:00:35]} 15. fxe5 {[%emt 0:00:07] [#]} Rf5 $1 {[%emt 0:00:38]} 16. g4 {[%emt 0:06:52]} Qxe5 {[%emt 0:03:43]} 17. Qd3 {[%emt 0:00:17]} (17. Qd4 {was necessary.} Qxd4 18. cxd4) 17... Rf4 $19 {[%emt 0:00:32] Hoping for ...Ba6.} 18. Rf1 {[%emt 0:12:10]} Rxf1+ {[%emt 0:00:29] Black is clearly winning.} 19. Kxf1 {[%emt 0:00:03]} Qxh2 {[%emt 0:00:40] [#] aiming for ...Qh1+.} 20. Bf3 {[%emt 0:07:00] Against Qh1+} (20. Ke1 $142 Qg1+ 21. Bf1) 20... Ba6 {[%emt 0:01:29] Threatens to win with ...Rf8.} 21. Qe4 {[%emt 0:06:15]} Rf8 {[%emt 0:00:37] Weighted Error Value: White=1.19/Black=0.07 (flawless)} 0-1